bitfinex-derivatives/quotes_BTCF0:USTF0_20251025
["timestamp","ask_amount","ask_price","bid_price","bid_amount"]
[1761382856043,0.49704798,111870.0,111860.0,0.15435798]
[1761382856842,0.37036,111870.0,111860.0,0.02767]
[1761382857336,0.37036,111870.0,111860.0,0.04985]
[1761382860542,0.37036,111870.0,111860.0,0.02767]
[1761382860747,0.37036,111870.0,111860.0,0.005]
[1761382860940,0.37048,111870.0,111860.0,0.005]
[1761382861944,0.49713799,111870.0,111860.0,0.005]
[1761382862145,0.18281799,111870.0,111860.0,0.005]
[1761382862533,0.49713799,111870.0,111860.0,0.005]
[1761382862738,0.18281799,111870.0,111860.0,0.005]
[1761382862942,0.49713799,111870.0,111860.0,0.005]
[1761382863949,0.18281799,111870.0,111860.0,0.005]
[1761382864148,0.49713799,111870.0,111860.0,0.005]
[1761382865049,0.05523,111850.0,111840.0,0.2052864]
[1761382865249,0.36955,111850.0,111840.0,0.2052864]
[1761382865442,0.36955,111850.0,111840.0,0.06949257]
[1761382865644,0.36955,111850.0,111840.0,0.04554]
[1761382866249,1.28179,111850.0,111840.0,0.04554]
[1761382867745,1.28179,111850.0,111840.0,0.04854]
[1761382868147,1.28179,111850.0,111840.0,0.04654]
[1761382868346,1.28179,111850.0,111840.0,0.001]
[1761382868947,1.28179,111850.0,111840.0,0.02371]
[1761382869552,1.28179,111850.0,111840.0,0.04654]
[1761382871660,1.28179,111850.0,111840.0,0.17319799]
[1761382872260,1.28179,111850.0,111840.0,0.001]
[1761382872662,0.05523,111840.0,111830.0,0.17219799]
[1761382872860,0.05523,111840.0,111830.0,0.19615056]
[1761382873358,0.05523,111840.0,111830.0,0.04554]
[1761382874256,0.05523,111840.0,111830.0,0.06949257]
[1761382874460,0.05523,111840.0,111830.0,0.07049257]
[1761382875457,0.05523,111840.0,111830.0,0.06949257]
[1761382876351,0.01279,111830.0,111820.0,0.02399786]
[1761382876662,0.01279,111830.0,111810.0,0.03202692]
[1761382876663,0.05523,111820.0,111810.0,0.04554]
[1761382878058,0.05527,111820.0,111810.0,0.04554]
[1761382878261,0.05527,111820.0,111810.0,0.04854]
[1761382880849,0.36971,111820.0,111810.0,0.04854]
[1761382883763,0.49636799,111820.0,111810.0,0.00265434]
[1761382883958,0.05523,111800.0,111790.0,0.17228695]
[1761382884150,0.36967,111800.0,111790.0,0.17228695]
[1761382884353,0.36967,111800.0,111790.0,0.18131624]
[1761382886355,0.36967,111800.0,111790.0,0.05465825]
[1761382886555,0.36967,111800.0,111790.0,0.18131624]
[1761382886851,0.02135,111800.0,111790.0,0.18756624]
[1761382887172,0.35708,111800.0,111790.0,0.27700844]
[1761382888864,0.05523,111810.0,111790.0,0.27700844]
[1761382889059,0.36987,111810.0,111800.0,0.17219799]
[1761382897355,0.36987,111810.0,111800.0,0.04554]
[1761382897559,0.36987,111810.0,111800.0,0.17219799]
[1761382900762,0.0568,111800.0,111790.0,0.08372517]
[1761382900956,0.0568,111800.0,111790.0,0.29982526]
[1761382901162,0.37136,111800.0,111790.0,0.29982526]
[1761382902068,0.37236,111800.0,111790.0,0.29982526]
[1761382902368,0.37236,111800.0,111790.0,0.21038316]
[1761382905469,0.37236,111800.0,111790.0,0.18900316]
[1761382905969,0.37236,111800.0,111790.0,0.03211588]
[1761382906668,0.0568,111790.0,111780.0,0.04258]
[1761382907069,0.0568,111790.0,111780.0,0.16923799]
[1761382907876,0.0568,111790.0,111780.0,0.17804308]
[1761382908577,0.0568,111790.0,111780.0,0.17904308]
[1761382911283,0.37184,111790.0,111780.0,0.17904308]
[1761382911773,0.3718,111790.0,111780.0,0.17904308]
[1761382912879,0.39584432,111790.0,111780.0,0.17904308]
[1761382913066,0.08084432,111790.0,111780.0,0.17904308]
[1761382913270,0.39584432,111790.0,111780.0,0.17904308]
[1761382913782,0.08084432,111790.0,111780.0,0.17904308]
[1761382913978,0.39580432,111790.0,111780.0,0.17904308]
[1761382914171,0.39580432,111790.0,111780.0,0.05238509]
[1761382914371,0.39580432,111790.0,111780.0,0.17904308]
[1761382914876,0.08084432,111790.0,111780.0,0.17904308]
[1761382915076,0.39580432,111790.0,111780.0,0.17904308]
[1761382915273,0.37176,111790.0,111780.0,0.17904308]
[1761382915668,0.0568,111790.0,111780.0,0.17904308]
[1761382915880,0.37176,111790.0,111780.0,0.17904308]
[1761382916079,0.37176,111790.0,111780.0,0.39515167]
[1761382916783,0.37176,111790.0,111780.0,0.39538677]
[1761382917884,0.0568,111790.0,111780.0,0.39538677]
[1761382918185,0.37172,111790.0,111780.0,0.39538677]
[1761382918878,0.37172,111790.0,111780.0,0.40163677]
[1761382919382,0.37172,111790.0,111780.0,0.39538677]
[1761382920483,0.37172,111790.0,111780.0,0.30593617]
[1761382927782,0.37172,111790.0,111780.0,0.05238509]
[1761382927986,0.37172,111790.0,111780.0,0.30593617]
[1761382928691,0.0568,111790.0,111780.0,0.30593617]
[1761382928890,0.3716,111790.0,111780.0,0.30593617]
[1761382933201,0.3716,111790.0,111780.0,0.05238509]
[1761382933404,0.3716,111790.0,111780.0,0.30593617]
[1761382936791,0.3716,111790.0,111780.0,0.33806241]
[1761382937398,0.49837554,111790.0,111780.0,0.16870687]
[1761382937599,0.52241986,111790.0,111780.0,0.12677554]
[1761382937905,0.39564432,111790.0,111780.0,0.12677554]
[1761382938299,0.39564432,111790.0,111780.0,0.13555404]
[1761382941696,0.39568432,111790.0,111780.0,0.13555404]
[1761382941894,0.39568432,111790.0,111780.0,0.15661404]
[1761382942095,0.39568432,111790.0,111780.0,0.30621958]
[1761382942602,0.08084432,111790.0,111780.0,0.30621958]
[1761382943003,0.39564432,111790.0,111780.0,0.30621958]
[1761382944994,0.39564432,111790.0,111780.0,0.43299512]
[1761382944995,0.35882,111790.0,111780.0,0.43299512]
[1761382945196,0.35882,111790.0,111780.0,0.30621958]
[1761382945405,0.37267,111790.0,111780.0,0.30621958]
[1761382945606,0.39348489,111790.0,111780.0,0.30621958]
[1761382948304,0.07868489,111790.0,111780.0,0.30621958]
[1761382948608,0.39348489,111790.0,111780.0,0.30621958]
[1761382950511,0.39348489,111790.0,111780.0,0.0526685]
[1761382950811,0.39348489,111790.0,111780.0,0.30621958]
[1761382952005,0.39348489,111790.0,111780.0,0.0526685]
[1761382952199,0.39348489,111790.0,111780.0,0.30621958]
[1761382952807,0.41752921,111790.0,111780.0,0.30621958]
[1761382955106,0.41762763,111790.0,111780.0,0.30621958]
[1761382955602,0.41762763,111790.0,111780.0,0.0526685]
[1761382955805,0.41762763,111790.0,111780.0,0.30621958]
[1761382959108,0.54440317,111790.0,111780.0,0.15661404]
[1761382959303,0.54440317,111790.0,111780.0,0.13555404]
[1761382959304,0.41762763,111790.0,111780.0,0.13555404]
[1761382962910,0.44976347,111790.0,111780.0,0.13555404]
[1761382963111,0.4497662,111790.0,111780.0,0.13555404]
[1761382965110,0.4497662,111790.0,111780.0,0.0087785]
[1761382965412,0.57654174,111790.0,111780.0,0.12677554]
[1761382967113,0.55239897,111790.0,111780.0,0.12677554]
[1761382967303,0.55239897,111790.0,111780.0,0.14313711]
[1761382969306,0.42562343,111790.0,111780.0,0.14313711]
[1761382970111,0.42562343,111790.0,111780.0,0.31445265]
[1761382971114,0.42562542,111790.0,111780.0,0.31445265]
[1761382972714,0.39348958,111790.0,111780.0,0.31445265]
[1761382973111,0.39348958,111790.0,111780.0,0.29229265]
[1761382973311,0.39348958,111790.0,111780.0,0.26991265]
[1761382973511,0.07868958,111790.0,111780.0,0.26991265]
[1761382973714,0.39328958,111790.0,111780.0,0.26991265]
[1761382976320,0.39328958,111790.0,111780.0,0.14313711]
[1761382977816,0.52006512,111790.0,111780.0,0.14313711]
[1761382978011,0.52002512,111790.0,111780.0,0.14313711]
[1761382978520,0.07868958,111790.0,111780.0,0.14313711]
[1761382978719,0.39324958,111790.0,111780.0,0.14317041]
[1761382979711,0.39324958,111790.0,111780.0,0.01636157]
[1761382979910,0.39324958,111790.0,111780.0,0.12680884]
[1761382980122,0.39320958,111790.0,111780.0,0.12680884]
[1761382980320,0.05607,111780.0,111770.0,0.21863083]
[1761382980519,0.07697854,111780.0,111770.0,0.21863083]
[1761382981216,0.34205854,111780.0,111770.0,0.23437171]
[1761382981516,0.07697854,111780.0,111770.0,0.23437171]
[1761382981717,0.34973854,111780.0,111770.0,0.23437171]
[1761382982820,0.39153854,111780.0,111770.0,0.23437171]
[1761382983611,0.07701854,111780.0,111770.0,0.23437171]
[1761382983811,0.39149854,111780.0,111770.0,0.23437171]
[1761382986226,0.07701854,111780.0,111770.0,0.23437171]
[1761382986424,0.35249854,111780.0,111770.0,0.23437171]
[1761382986618,0.39149854,111780.0,111770.0,0.23437171]
[1761382990026,0.07701854,111780.0,111770.0,0.23437171]
[1761382990233,0.39145854,111780.0,111770.0,0.23437171]
[1761382991225,0.39145854,111780.0,111770.0,0.32383011]
[1761382991419,0.39145854,111780.0,111770.0,0.23437171]
[1761382998528,0.39145854,111780.0,111770.0,0.10756287]
[1761383000232,0.39145854,111780.0,111770.0,0.23437171]
[1761383000936,0.39145854,111780.0,111770.0,0.10756287]
[1761383002834,0.41560354,111780.0,111770.0,0.05942088]
[1761383006735,0.41560354,111780.0,111770.0,0.18622972]
[1761383012936,0.39145854,111780.0,111770.0,0.23437171]
[1761383013836,0.39145854,111780.0,111770.0,0.10756287]
[1761383014037,0.39145854,111780.0,111770.0,0.23437171]
[1761383016638,0.39141854,111780.0,111770.0,0.32383011]
[1761383016839,0.37826854,111780.0,111770.0,0.33379011]
[1761383017039,0.37826854,111780.0,111770.0,0.20698127]
[1761383017230,0.06386854,111780.0,111770.0,0.33379011]
[1761383018737,0.06386854,111780.0,111770.0,0.20698127]
[1761383018926,0.07708854,111780.0,111770.0,0.33379011]
[1761383019129,0.07708854,111780.0,111770.0,0.32383011]
[1761383021842,0.07708854,111780.0,111770.0,0.92383011]
[1761383022342,0.07708854,111780.0,111770.0,0.32383011]
[1761383023938,0.07708854,111780.0,111770.0,0.19702127]
[1761383024242,0.07708854,111780.0,111770.0,0.32383011]
[1761383028854,0.07708854,111780.0,111770.0,0.19702127]
[1761383029152,0.07708854,111780.0,111770.0,0.32383011]
[1761383032747,0.05626896,111780.0,111770.0,0.32383011]
[1761383036560,0.05626896,111780.0,111770.0,0.19702127]
[1761383036857,0.05626896,111780.0,111770.0,0.32383011]
[1761383038252,0.2038696,111780.0,111770.0,0.08616287]
[1761383038457,0.07706076,111780.0,111770.0,0.18797972]
[1761383038659,0.07706076,111780.0,111770.0,0.18799313]
[1761383039654,0.07706076,111780.0,111770.0,0.06117088]
[1761383039855,0.07706076,111780.0,111770.0,0.18799313]
[1761383041754,0.07706076,111780.0,111770.0,0.31481538]
[1761383042357,0.07706076,111780.0,111770.0,0.18799313]
[1761383042855,0.07706076,111780.0,111770.0,0.31481538]
[1761383044463,0.07706076,111780.0,111770.0,0.40427368]
[1761383044664,0.07706076,111780.0,111770.0,0.45241567]
[1761383045565,0.07706076,111780.0,111770.0,0.36295737]
[1761383052268,0.07706076,111780.0,111770.0,0.10931287]
[1761383052473,0.07706076,111780.0,111770.0,0.36295737]
[1761383052767,0.10120576,111780.0,111770.0,0.31481538]
[1761383053267,0.10120576,111780.0,111770.0,0.40427268]
[1761383054372,0.10120076,111780.0,111770.0,0.40427268]
[1761383054771,0.08798076,111780.0,111770.0,0.40427268]
[1761383054968,0.02092093,111780.0,111770.0,0.41423268]
[1761383057966,0.04425093,111780.0,111770.0,0.41423268]
[1761383058167,0.06604093,111780.0,111770.0,0.41423268]
[1761383060473,0.06604093,111780.0,111770.0,1.01423268]
[1761383062858,0.06604093,111780.0,111770.0,1.06237467]
[1761383064175,0.07868093,111780.0,111770.0,0.10931287]
[1761383064374,0.20550318,111780.0,111770.0,0.37553088]
[1761383064566,0.20550318,111780.0,111770.0,0.50235313]
[1761383064765,0.07868093,111780.0,111770.0,0.50235313]
[1761383065973,0.07868093,111780.0,111770.0,0.06117088]
[1761383066174,0.07868093,111780.0,111770.0,0.18799313]
[1761383073470,0.07868093,111780.0,111770.0,0.06117088]
[1761383073670,0.07868093,111780.0,111770.0,0.18799313]
[1761383075682,0.07868093,111780.0,111770.0,0.06117088]
[1761383075980,0.07868093,111780.0,111770.0,0.18799313]
[1761383076280,0.07868093,111780.0,111770.0,0.06117088]
[1761383076578,0.07868093,111780.0,111770.0,0.18799313]
[1761383077177,0.07868093,111780.0,111770.0,0.06117088]
[1761383077379,0.07868093,111780.0,111770.0,0.18799313]
[1761383079086,0.07868093,111780.0,111770.0,0.06117088]
[1761383079382,0.07868093,111780.0,111770.0,0.18799313]
[1761383081693,0.07868093,111780.0,111770.0,0.06117088]
[1761383081988,0.07868093,111780.0,111770.0,0.18799313]
[1761383083983,0.07868093,111780.0,111770.0,0.06117088]
[1761383084284,0.07868093,111780.0,111770.0,0.18799313]
[1761383085287,0.20550318,111780.0,111770.0,0.06117088]
[1761383085482,0.35646526,111780.0,111770.0,1e-08]
[1761383085684,0.01351,111770.0,111760.0,0.17059225]
[1761383085891,0.39273197,111770.0,111760.0,0.19510343]
[1761383086496,0.39273197,111770.0,111760.0,0.06828118]
[1761383086793,0.39273197,111770.0,111760.0,0.32192568]
[1761383087000,0.39373197,111770.0,111760.0,0.06828118]
[1761383087302,0.39473197,111770.0,111760.0,0.32192568]
[1761383087598,0.39473197,111770.0,111760.0,0.19510343]
[1761383088393,0.52155422,111770.0,111760.0,0.06828118]
[1761383088594,0.52155422,111770.0,111760.0,0.19510343]
[1761383089197,0.39473197,111770.0,111760.0,0.19510343]
[1761383089401,0.52155422,111770.0,111760.0,0.19510343]
[1761383090004,0.52155422,111770.0,111760.0,0.06828118]
[1761383090202,0.52155422,111770.0,111760.0,0.19510343]
[1761383091701,0.39473197,111770.0,111760.0,0.19510343]
[1761383091897,0.52155422,111770.0,111760.0,0.19510343]
[1761383092097,0.52155422,111770.0,111760.0,0.06828118]
[1761383092305,0.52155422,111770.0,111760.0,0.19510343]
[1761383092899,0.54569405,111770.0,111760.0,0.19510343]
[1761383093100,0.05758,111750.0,111740.0,0.30821314]
[1761383093306,0.07844802,111750.0,111740.0,0.43503539]
[1761383094305,0.07844802,111750.0,111740.0,0.43703539]
[1761383095101,0.07844802,111750.0,111740.0,0.5072057]
[1761383097109,0.07844802,111750.0,111740.0,0.45906371]
[1761383097314,0.07844802,111750.0,111740.0,0.48377992]
[1761383098314,0.07944802,111750.0,111740.0,0.48377992]
[1761383099012,0.07944802,111750.0,111740.0,0.49002992]
[1761383099214,0.08044802,111750.0,111740.0,0.48802992]
[1761383099810,0.06693802,111750.0,111740.0,0.48802992]
[1761383100612,0.08007802,111750.0,111740.0,0.48802992]
[1761383100806,0.08007802,111750.0,111740.0,0.36125545]
[1761383102910,0.05928605,111750.0,111740.0,0.40939744]
[1761383107119,0.04614605,111750.0,111740.0,0.40939744]
[1761383110217,0.04614605,111750.0,111740.0,0.36125545]
[1761383110904,0.04614605,111750.0,111740.0,0.40942166]
[1761383111309,0.04614605,111750.0,111740.0,0.36125545]
[1761383113023,0.04614605,111750.0,111740.0,0.40943465]
[1761383115119,0.06712474,111750.0,111740.0,0.36125545]
[1761383120025,0.00207605,111750.0,111740.0,0.36125545]
[1761383120325,0.00207605,111750.0,111740.0,0.48812548]
[1761383120520,0.11111567,111780.0,111760.0,0.1414657]
[1761383120818,0.09995999,111780.0,111770.0,0.17044003]
[1761383122016,0.10095999,111780.0,111770.0,0.17044003]
[1761383122222,0.10195999,111780.0,111770.0,0.17044003]
[1761383122829,0.07782016,111780.0,111770.0,0.17044003]
[1761383123626,0.07682016,111780.0,111770.0,0.17044003]
[1761383123829,0.07782016,111780.0,111770.0,0.17044003]
[1761383129625,0.07782016,111780.0,111770.0,0.25989763]
[1761383130020,0.06518016,111780.0,111770.0,0.26679763]
[1761383130226,0.02302016,111780.0,111770.0,0.26679763]
[1761383130421,0.04410016,111780.0,111770.0,0.26679763]
[1761383130826,0.06518016,111780.0,111770.0,0.26679763]
[1761383133427,0.06518016,111780.0,111770.0,0.58115763]
[1761383142844,0.08931999,111780.0,111770.0,0.58115763]
[1761383148547,0.07003999,111780.0,111770.0,0.58115763]
[1761383149837,0.17604165,111790.0,111770.0,0.58115763]
[1761383149838,0.02035421,111790.0,111770.0,0.58115763]
[1761383150037,0.0597956,111820.0,111810.0,0.04421]
[1761383150248,0.0574,111820.0,111810.0,0.70181566]
[1761383150436,0.0574,111820.0,111810.0,0.57494563]
[1761383150745,0.0574,111820.0,111810.0,0.61870126]
[1761383151641,0.0644,111820.0,111810.0,0.61870126]
[1761383152150,0.0664,111820.0,111810.0,0.61870126]
[1761383154156,0.00904,111820.0,111810.0,0.75247129]
[1761383154856,0.03192,111820.0,111810.0,0.639013]
[1761383155054,0.05298,111820.0,111810.0,0.639013]
[1761383155248,0.05098,111820.0,111810.0,0.639013]
[1761383155449,0.05198,111820.0,111810.0,0.639013]
[1761383155650,0.04998,111820.0,111810.0,0.639013]
[1761383156158,0.04498,111820.0,111810.0,0.639013]
[1761383156353,0.04798,111820.0,111810.0,0.639013]
[1761383156959,0.04798,111820.0,111810.0,0.51214297]
[1761383157159,0.04798,111820.0,111810.0,0.639013]
[1761383158260,0.06081,111820.0,111810.0,0.5428074]
[1761383159167,0.06081,111820.0,111810.0,0.52939566]
[1761383159368,0.06081,111820.0,111810.0,0.54279109]
[1761383159567,0.06081,111820.0,111810.0,0.54275109]
[1761383160368,0.06081,111820.0,111810.0,0.54279109]
[1761383161163,0.06081,111820.0,111810.0,0.10136106]
[1761383161372,0.06081,111820.0,111810.0,0.41588106]
[1761383161963,0.06081,111820.0,111810.0,0.54275109]
[1761383162874,0.06081,111820.0,111810.0,0.54261744]
[1761383165065,0.31428276,111820.0,111810.0,0.05760543]
[1761383165265,0.18754638,111820.0,111810.0,0.18434181]
[1761383166273,0.18754638,111820.0,111810.0,0.22987004]
[1761383166466,0.06081,111820.0,111810.0,0.22987004]
[1761383167264,0.06081,111820.0,111810.0,0.18434181]
[1761383168771,0.06081,111820.0,111810.0,0.23015633]
[1761383172358,0.06081,111820.0,111810.0,0.18434181]
[1761383175280,0.06081,111820.0,111810.0,0.2288431]
[1761383175772,0.06081,111820.0,111810.0,0.18434181]
[1761383175974,0.06081,111820.0,111810.0,0.22888336]
[1761383176176,0.06081,111820.0,111810.0,0.18434181]
[1761383176370,0.18754638,111820.0,111810.0,0.05760543]
[1761383176572,0.18754638,111820.0,111810.0,0.18434181]
[1761383177270,0.18754638,111820.0,111810.0,0.05760543]
[1761383177474,0.18754638,111820.0,111810.0,0.18434181]
[1761383178376,0.18754638,111820.0,111810.0,0.2083198]
[1761383178871,0.31428276,111820.0,111810.0,0.01301568]
[1761383179965,0.96236057,111820.0,111810.0,0.01301568]
[1761383180469,0.91428276,111820.0,111810.0,0.01301568]
[1761383181177,0.94643241,111820.0,111810.0,0.01301568]
[1761383182273,0.38236057,111820.0,111810.0,0.01301568]
[1761383182478,0.05708,111790.0,111780.0,0.19306437]
[1761383183373,0.05708,111790.0,111780.0,0.23848299]
[1761383183571,0.18381638,111790.0,111780.0,0.06632799]
[1761383184076,0.05708,111790.0,111780.0,0.06832799]
[1761383184379,0.05708,111790.0,111780.0,0.17108638]
[1761383184773,0.05708,111790.0,111780.0,0.32180075]
[1761383184983,0.04326,111790.0,111780.0,0.37395842]
[1761383185572,0.04326,111790.0,111780.0,0.34998043]
[1761383191081,0.02118,111790.0,111780.0,0.34998043]
[1761383191278,0.37188,111800.0,111780.0,0.34998043]
[1761383191478,0.37188,111800.0,111790.0,0.12673638]
[1761383191778,0.37188,111800.0,111790.0,0.16908638]
[1761383193687,0.49861638,111800.0,111790.0,0.16908638]
[1761383197285,0.53075886,111800.0,111790.0,0.16908638]
[1761383202290,0.40402248,111800.0,111790.0,0.16908638]
[1761383202494,0.53075886,111800.0,111790.0,0.16908638]
[1761383202895,0.49861638,111800.0,111790.0,0.16908638]
[1761383203893,0.49861638,111800.0,111790.0,0.04235]
[1761383203894,0.37188,111800.0,111790.0,0.04235]
[1761383204294,0.37188,111800.0,111790.0,0.16908638]
[1761383204295,0.49861638,111800.0,111790.0,0.16908638]
[1761383205289,0.49861638,111800.0,111780.0,0.06641767]
[1761383205497,0.18531638,111790.0,111780.0,0.21522405]
[1761383207298,0.18531638,111790.0,111780.0,0.21722405]
[1761383208694,0.18531638,111790.0,111780.0,0.09048767]
[1761383208993,0.18531638,111790.0,111780.0,0.21722405]
[1761383209997,0.20945838,111790.0,111780.0,0.21722405]
[1761383211487,0.20945838,111790.0,111780.0,0.09048767]
[1761383211790,0.082722,111790.0,111780.0,0.09048767]
[1761383211997,0.20945838,111790.0,111780.0,0.21722405]
[1761383212196,0.082722,111790.0,111780.0,0.24928228]
[1761383212995,0.082722,111790.0,111780.0,0.1225459]
[1761383213194,0.082722,111790.0,111780.0,0.24928228]
[1761383214596,0.082722,111790.0,111780.0,0.37601866]
[1761383215194,0.02275,111790.0,111780.0,0.47389816]
[1761383215390,0.02275,111790.0,111780.0,0.49005849]
[1761383215791,0.37319,111800.0,111780.0,0.49005849]
[1761383216092,0.37319,111800.0,111790.0,0.20365823]
[1761383216590,0.37319,111800.0,111790.0,0.07692185]
[1761383216795,0.37319,111800.0,111790.0,0.20365823]
[1761383218296,0.37319,111800.0,111790.0,0.07692185]
[1761383218497,0.37319,111800.0,111790.0,0.20365823]
[1761383222307,0.37311,111800.0,111790.0,0.20365823]
[1761383222695,0.37311,111800.0,111790.0,0.20368438]
[1761383227505,0.37311,111800.0,111790.0,0.22779336]
[1761383227706,0.37311,111800.0,111790.0,0.20368438]
[1761383228197,0.37311,111800.0,111790.0,0.22779286]
[1761383229904,0.397252,111800.0,111790.0,0.19563101]
[1761383232908,0.40525248,111800.0,111790.0,0.17152253]
[1761383233807,0.40525248,111800.0,111790.0,0.04476]
[1761383234110,0.45333029,111800.0,111790.0,0.02269]
[1761383234302,0.45333029,111800.0,111790.0,0.04482]
[1761383235104,0.45333029,111800.0,111790.0,0.17158253]
[1761383235310,0.40525248,111800.0,111790.0,0.17158253]
[1761383238911,0.40525248,111800.0,111790.0,0.04482]
[1761383241714,0.45333029,111800.0,111790.0,0.04482]
[1761383242812,0.05691,111790.0,111780.0,0.11199615]
[1761383243011,0.05691,111790.0,111780.0,0.12004952]
[1761383243314,0.05691,111790.0,111780.0,0.24681205]
[1761383243909,0.05691,111790.0,111780.0,0.24881205]
[1761383249520,0.08105462,111790.0,111780.0,0.12204952]
[1761383249721,0.08105462,111790.0,111780.0,0.1461797]
[1761383249920,0.08105462,111790.0,111780.0,0.11401785]
[1761383251620,0.08105462,111790.0,111780.0,0.02613018]
[1761383252723,0.08105462,111790.0,111780.0,0.04816018]
[1761383252923,0.08105462,111790.0,111780.0,0.06958018]
[1761383257017,0.08105462,111790.0,111780.0,0.19634271]
[1761383257216,0.32703,111790.0,111780.0,0.19634271]
[1761383257519,0.32703,111790.0,111780.0,0.20437438]
[1761383259026,0.32703,111790.0,111780.0,0.07761185]
[1761383259229,0.32703,111790.0,111780.0,0.20437438]
[1761383266036,0.32703,111790.0,111780.0,0.07761185]
[1761383266233,0.32703,111790.0,111780.0,0.20437438]
[1761383267035,0.32703,111790.0,111780.0,0.22849322]
[1761383267234,0.32703,111790.0,111780.0,0.20437438]
[1761383270938,0.37131,111790.0,111780.0,0.20437438]
[1761383273334,0.37131,111790.0,111780.0,0.07761185]
[1761383273543,0.37131,111790.0,111780.0,0.20437438]
[1761383278847,0.37131,111790.0,111780.0,0.07761185]
[1761383279050,0.37131,111790.0,111780.0,0.20437438]
[1761383281762,0.37131,111790.0,111780.0,0.22849137]
[1761383282954,0.42764745,111790.0,111780.0,0.17221253]
[1761383284669,0.42764745,111790.0,111780.0,0.2990467]
[1761383285162,0.40350283,111790.0,111780.0,0.32316369]
[1761383285869,0.40350283,111790.0,111780.0,0.06956699]
[1761383286067,0.40350283,111790.0,111780.0,0.32316369]
[1761383287363,0.40350283,111790.0,111780.0,0.06956699]
[1761383287563,0.40350283,111790.0,111780.0,0.32316369]
[1761383292973,0.39546894,111790.0,111780.0,0.33120855]
[1761383298770,0.37131,111790.0,111780.0,0.42065825]
[1761383298970,0.39546894,111790.0,111780.0,0.42065825]
[1761383299672,0.08106894,111790.0,111780.0,0.42065825]
[1761383299876,0.08106894,111790.0,111780.0,0.79166681]
[1761383299877,0.05691,111790.0,111780.0,0.79166681]
[1761383301373,0.04398,111790.0,111780.0,0.79166681]
[1761383301579,0.04398,111790.0,111780.0,0.7112864]
[1761383301780,0.04398,111790.0,111780.0,0.79168026]
[1761383301969,0.04398,111790.0,111780.0,0.91847861]
[1761383302169,0.04399,111800.0,111790.0,0.1419315]
[1761383302370,0.04399,111800.0,111790.0,0.47591413]
[1761383304578,0.04399,111800.0,111790.0,0.42768257]
[1761383304871,0.04399,111800.0,111790.0,0.47591413]
[1761383306879,0.04399,111800.0,111790.0,0.42768257]
[1761383307379,0.02251,111800.0,111790.0,0.42768257]
[1761383308975,0.02251,111800.0,111790.0,0.44375976]
[1761383309381,0.02251,111800.0,111790.0,0.42764538]
[1761383309780,0.02251,111800.0,111790.0,0.47587694]
[1761383310574,0.02251,111800.0,111790.0,0.44375976]
[1761383311086,0.05781,111810.0,111800.0,0.1334937]
[1761383311282,0.04399,111810.0,111800.0,0.7014104]
[1761383311486,0.16847152,111820.0,111810.0,0.1334857]
[1761383311487,0.21246152,111820.0,111810.0,0.1334857]
[1761383311682,0.18830258,111820.0,111810.0,0.3933324]
[1761383311979,0.18830258,111820.0,111810.0,0.42544416]
[1761383312974,0.18930258,111820.0,111810.0,0.3933324]
[1761383313185,0.18930258,111820.0,111810.0,0.3870824]
[1761383313382,0.18930258,111820.0,111810.0,0.26028405]
[1761383313383,0.19230258,111820.0,111810.0,0.26028405]
[1761383316997,0.19230258,111820.0,111810.0,0.33351508]
[1761383317697,0.19230258,111820.0,111810.0,0.24408938]
[1761383321998,0.19230258,111820.0,111810.0,0.33351518]
[1761383324698,0.19230258,111820.0,111810.0,0.11729103]
[1761383324900,0.19230258,111820.0,111810.0,0.24408938]
[1761383326586,0.19230258,111820.0,111810.0,0.33351468]
[1761383330495,0.19230258,111820.0,111810.0,0.52095633]
[1761383330799,0.19230258,111820.0,111810.0,0.64775468]
[1761383332198,0.19230258,111820.0,111810.0,0.77455303]
[1761383333001,0.19230258,111820.0,111810.0,0.80666479]
[1761383333507,0.19230258,111820.0,111810.0,0.85489635]
[1761383333701,0.02699,111820.0,111810.0,0.86114635]
[1761383333898,0.05,111820.0,111810.0,0.86114635]
[1761383334105,0.05956,111830.0,111820.0,0.1328177]
[1761383334301,0.05956,111830.0,111820.0,0.41850707]
[1761383334697,0.05956,111830.0,111820.0,0.44972195]
[1761383335508,0.06356,111830.0,111820.0,0.44972195]
[1761383336311,0.06456,111830.0,111820.0,0.44972195]
[1761383338803,0.06456,111830.0,111820.0,0.67450425]
[1761383341606,0.06456,111830.0,111820.0,0.76392185]
[1761383342912,0.08871894,111830.0,111820.0,0.73182918]
[1761383344105,0.08871894,111830.0,111820.0,0.76392185]
[1761383344306,0.08871894,111830.0,111820.0,0.73182918]
[1761383344713,0.08871894,111830.0,111820.0,0.60493458]
[1761383348315,0.08871894,111830.0,111820.0,0.63702725]
[1761383351522,0.005,111830.0,111820.0,0.66159614]
[1761383351925,0.027,111830.0,111820.0,0.66159614]
[1761383352109,0.027,111830.0,111820.0,0.69372524]
[1761383352925,0.027,111830.0,111820.0,0.66159614]
[1761383353331,0.027,111830.0,111820.0,0.69371237]
[1761383353518,0.027,111830.0,111820.0,0.66159614]
[1761383354334,0.027,111830.0,111820.0,0.69370794]
[1761383355629,0.005,111830.0,111820.0,0.69370794]
[1761383355934,0.04619894,111850.0,111840.0,0.1407926]
[1761383356130,0.04319,111850.0,111840.0,0.6189542]
[1761383356430,0.04319,111850.0,111840.0,0.7083568]
[1761383356619,0.04319,111850.0,111840.0,0.5816547]
[1761383357027,0.04319,111850.0,111840.0,0.7083568]
[1761383357731,0.05119,111850.0,111840.0,0.7083568]
[1761383358126,0.04619,111850.0,111840.0,0.7083568]
[1761383358433,0.04519,111850.0,111840.0,0.7083568]
[1761383362841,0.00204,111850.0,111840.0,0.7083568]
[1761383365639,0.00204,111850.0,111840.0,0.73238378]
[1761383366241,0.00204,111850.0,111840.0,0.76448408]
[1761383367238,0.08114894,111870.0,111860.0,0.1338766]
[1761383367546,0.04319,111870.0,111860.0,0.5831287]
[1761383368244,0.04519,111870.0,111860.0,0.5831287]
[1761383368836,0.04719,111870.0,111860.0,0.5831287]
[1761383369035,0.02604,111870.0,111860.0,0.5831287]
[1761383369946,0.02404,111870.0,111860.0,0.5831287]
[1761383370143,0.02504,111870.0,111860.0,0.5831287]
[1761383371047,0.00304,111870.0,111860.0,0.5831287]
[1761383371350,0.02415894,111890.0,111880.0,0.1338607]
[1761383371351,0.05695,111890.0,111880.0,0.1338607]
[1761383371545,0.05695,111890.0,111880.0,0.64646372]
[1761383371748,0.06730894,111900.0,111890.0,0.1399527]
[1761383371933,0.04315,111900.0,111890.0,0.2666548]
[1761383372443,0.05581,111900.0,111890.0,0.2604048]
[1761383373151,0.11216177,111900.0,111890.0,0.2604048]
[1761383373835,0.11316177,111900.0,111890.0,0.2604048]